[Event "*** SCC Grand Prix: Titled Tuesday Blitz"]
[Site "Chess.com"]
[Date "2020.08.25"]
[Round "3"]
[White "frequentblunders"]
[Black "ThePatrick27"]
[Result "0-1"]
[WhiteElo "2113"]
[BlackElo "2460"]
[TimeControl "180+1"]
[EndTime "10:29:53 PDT"]
[Termination "ThePatrick27 won by resignation"]

1. e4 {[%clk 0:02:59.2]} 1... e5 {[%clk 0:02:59]} 2. Nf3 {[%clk 0:02:58.7]} 2...
Nc6 {[%clk 0:02:59.2]} 3. Nc3 {[%clk 0:02:57.5]} 3... Nf6 {[%clk 0:02:59.2]} 4.
d4 {[%clk 0:02:57.3]} 4... exd4 {[%clk 0:03:00.1]} 5. Nd5 {[%clk 0:02:57.6]}
5... Be7 {[%clk 0:02:52.4]} 6. Nxd4 {[%clk 0:02:41.2]} 6... O-O {[%clk
0:02:46.2]} 7. Nf5 {[%clk 0:02:21.9]} 7... Nxd5 {[%clk 0:02:32.9]} 8. exd5
{[%clk 0:02:19]} 8... Re8 {[%clk 0:02:25.2]} 9. Be2 {[%clk 0:02:01.6]} 9... Ne5
{[%clk 0:02:19.9]} 10. O-O {[%clk 0:01:58.1]} 10... Bf6 {[%clk 0:02:13.2]} 11.
f4 {[%clk 0:01:51.8]} 11... Ng6 {[%clk 0:02:11.7]} 12. d6 {[%clk 0:01:43.6]}
12... cxd6 {[%clk 0:02:06.5]} 13. Nxd6 {[%clk 0:01:35.5]} 13... Rxe2 {[%clk
0:02:00.9]} 14. Qxe2 {[%clk 0:01:36.4]} 14... Qb6+ {[%clk 0:02:00.9]} 15. Be3
{[%clk 0:01:23.7]} 15... Qxd6 {[%clk 0:02:00.9]} 16. Rad1 {[%clk 0:01:24.2]}
16... Qc7 {[%clk 0:02:01]} 17. f5 {[%clk 0:01:15.6]} 17... Nf8 {[%clk
0:01:59.8]} 18. Bf4 {[%clk 0:01:10.6]} 18... Qb6+ {[%clk 0:01:58.4]} 19. Kh1
{[%clk 0:01:10.2]} 19... d5 {[%clk 0:01:54.9]} 20. Qe8 {[%clk 0:01:00]} 20...
Qc6 {[%clk 0:01:55]} 21. Rfe1 {[%clk 0:00:51.9]} 21... d4 {[%clk 0:01:20.5]} 22.
Qxc6 {[%clk 0:00:48.2]} 22... bxc6 {[%clk 0:01:21.4]} 23. Re8 {[%clk 0:00:48.1]}
23... Bb7 {[%clk 0:01:21.7]} 24. Rde1 {[%clk 0:00:46.4]} 24... c5 {[%clk
0:01:10.9]} 25. Bd6 {[%clk 0:00:45.2]} 25... g6 {[%clk 0:00:57.8]} 26. Rxa8
{[%clk 0:00:43.9]} 26... Bxa8 {[%clk 0:00:57.9]} 27. Re8 {[%clk 0:00:44.1]}
27... Bc6 {[%clk 0:00:49.7]} 28. Rxf8+ {[%clk 0:00:43.1]} 28... Kg7 {[%clk
0:00:50.1]} 29. Rc8 {[%clk 0:00:42.5]} 29... Bd7 {[%clk 0:00:47.8]} 30. Bf8+
{[%clk 0:00:33.6]} 30... Kg8 {[%clk 0:00:47.7]} 31. Rb8 {[%clk 0:00:28.9]} 31...
h5 {[%clk 0:00:47.5]} 32. Bxc5+ {[%clk 0:00:26.9]} 32... Kg7 {[%clk 0:00:45.8]}
33. fxg6 {[%clk 0:00:27.3]} 33... Kxg6 {[%clk 0:00:44.2]} 34. Rb7 {[%clk
0:00:27.5]} 34... Bf5 {[%clk 0:00:43.5]} 35. c3 {[%clk 0:00:24.8]} 35... d3
{[%clk 0:00:43.7]} 36. Be3 {[%clk 0:00:23.3]} 36... Bg5 {[%clk 0:00:43.7]} 37.
Bxg5 {[%clk 0:00:22.3]} 37... Kxg5 {[%clk 0:00:44.6]} 38. Rb8 {[%clk 0:00:21.9]}
38... Kf4 {[%clk 0:00:43.5]} 39. Rd8 {[%clk 0:00:22.4]} 39... Ke3 {[%clk
0:00:43.7]} 40. h3 {[%clk 0:00:22.1]} 40... d2 {[%clk 0:00:43.9]} 41. Kh2 {[%clk
0:00:21.5]} 41... Bd3 {[%clk 0:00:43.9]} 42. Rxd3+ {[%clk 0:00:17.4]} 42... Kxd3
{[%clk 0:00:44.1]} 43. g4 {[%clk 0:00:18.2]} 43... d1=Q {[%clk 0:00:44.8]} 44.
gxh5 {[%clk 0:00:17.3]} 44... Qxh5 {[%clk 0:00:44.7]} 0-1

[Event "*** SCC Grand Prix: Titled Tuesday Blitz"]
[Site "Chess.com"]
[Date "2020.08.25"]
[Round "3"]
[White "parintele_chess"]
[Black "ClydeHillKid"]
[Result "0-1"]
[WhiteElo "2137"]
[BlackElo "2351"]
[TimeControl "180+1"]
[EndTime "10:29:56 PDT"]
[Termination "ClydeHillKid won by resignation"]

1. d4 {[%clk 0:02:59.1]} 1... d5 {[%clk 0:02:59.7]} 2. c4 {[%clk 0:02:58.2]}
2... e6 {[%clk 0:02:59.4]} 3. Nc3 {[%clk 0:02:56.1]} 3... Nf6 {[%clk 0:02:59]}
4. cxd5 {[%clk 0:02:56.4]} 4... exd5 {[%clk 0:02:58.9]} 5. Bg5 {[%clk
0:02:56.7]} 5... c6 {[%clk 0:02:58.8]} 6. e3 {[%clk 0:02:56.6]} 6... Bd6 {[%clk
0:02:58.1]} 7. Bd3 {[%clk 0:02:57.1]} 7... O-O {[%clk 0:02:57.8]} 8. Qc2 {[%clk
0:02:56.7]} 8... h6 {[%clk 0:02:57.7]} 9. Bh4 {[%clk 0:02:52]} 9... Re8 {[%clk
0:02:57.1]} 10. Nge2 {[%clk 0:02:50.8]} 10... Nbd7 {[%clk 0:02:56.4]} 11. O-O
{[%clk 0:02:46.3]} 11... Bxh2+ {[%clk 0:02:55.7]} 12. Kxh2 {[%clk 0:02:45.9]}
12... Ng4+ {[%clk 0:02:55.4]} 13. Kg3 {[%clk 0:02:45.8]} 13... Ndf6 {[%clk
0:02:51.8]} 14. Bxf6 {[%clk 0:02:36.1]} 14... Qxf6 {[%clk 0:02:50.4]} 15. Nf4
{[%clk 0:02:23.3]} 15... g5 {[%clk 0:02:42.7]} 16. Nh5 {[%clk 0:01:59.6]} 16...
Qd6+ {[%clk 0:02:08]} 17. Kf3 {[%clk 0:01:58.2]} 17... Nh2+ {[%clk 0:02:07.6]}
18. Ke2 {[%clk 0:01:57.8]} 18... Bg4+ {[%clk 0:02:05.4]} 19. f3 {[%clk
0:01:57.8]} 19... Nxf1 {[%clk 0:01:54.9]} 20. Rxf1 {[%clk 0:01:49]} 20... Bxh5
{[%clk 0:01:53.4]} 21. Rh1 {[%clk 0:01:47]} 21... Bg6 {[%clk 0:01:51]} 22. Bxg6
{[%clk 0:01:35.3]} 22... Qxg6 {[%clk 0:01:51.9]} 23. Qxg6+ {[%clk 0:01:35.4]}
23... fxg6 {[%clk 0:01:52.8]} 24. Rxh6 {[%clk 0:01:35.9]} 24... Kg7 {[%clk
0:01:52.8]} 25. Rh1 {[%clk 0:01:35.6]} 25... Re7 {[%clk 0:01:51.3]} 26. e4
{[%clk 0:01:34.5]} 26... Rae8 {[%clk 0:01:47.1]} 27. e5 {[%clk 0:01:34.2]} 27...
Rd8 {[%clk 0:01:41.7]} 28. Na4 {[%clk 0:01:26.6]} 28... b6 {[%clk 0:01:41.3]}
29. b4 {[%clk 0:01:24]} 29... a5 {[%clk 0:01:21.4]} 30. a3 {[%clk 0:01:07.8]}
30... axb4 {[%clk 0:01:18.9]} 31. axb4 {[%clk 0:01:08.7]} 31... Ra7 {[%clk
0:01:10.5]} 32. Nxb6 {[%clk 0:01:03.3]} 32... Ra2+ {[%clk 0:01:09.4]} 33. Kd3
{[%clk 0:00:57.9]} 33... Ra6 {[%clk 0:00:57.1]} 34. Nc4 {[%clk 0:00:43.6]} 34...
dxc4+ {[%clk 0:00:55.3]} 35. Kxc4 {[%clk 0:00:44.5]} 35... Ra2 {[%clk
0:00:52.7]} 36. Re1 {[%clk 0:00:39.2]} 36... Rxg2 {[%clk 0:00:51.1]} 37. e6
{[%clk 0:00:33.3]} 37... Kf6 {[%clk 0:00:48.8]} 38. Kc5 {[%clk 0:00:30.7]} 38...
Rc2+ {[%clk 0:00:45.8]} 39. Kb6 {[%clk 0:00:30.6]} 39... Re8 {[%clk 0:00:43.5]}
40. b5 {[%clk 0:00:28]} 40... Rxe6 {[%clk 0:00:34]} 41. Rxe6+ {[%clk 0:00:27.6]}
41... Kxe6 {[%clk 0:00:34.9]} 42. bxc6 {[%clk 0:00:28.2]} 42... Kd6 {[%clk
0:00:35.3]} 43. d5 {[%clk 0:00:27.6]} 43... Kxd5 {[%clk 0:00:34.4]} 44. c7
{[%clk 0:00:28.5]} 44... Kd6 {[%clk 0:00:34.3]} 0-1

[Event "*** SCC Grand Prix: Titled Tuesday Blitz"]
[Site "Chess.com"]
[Date "2020.08.25"]
[Round "3"]
[White "kasparicy"]
[Black "abfchess"]
[Result "1/2-1/2"]
[WhiteElo "2335"]
[BlackElo "2140"]
[TimeControl "180+1"]
[EndTime "10:29:56 PDT"]
[Termination "Game drawn by repetition"]

1. e4 {[%clk 0:03:00.9]} 1... e6 {[%clk 0:03:00.3]} 2. d4 {[%clk 0:02:37.9]}
2... d5 {[%clk 0:03:00.3]} 3. Nd2 {[%clk 0:02:37.3]} 3... Nc6 {[%clk 0:03:00]}
4. Ngf3 {[%clk 0:02:27.9]} 4... Nf6 {[%clk 0:02:59.4]} 5. e5 {[%clk 0:02:28.3]}
5... Nd7 {[%clk 0:02:59.3]} 6. Bd3 {[%clk 0:02:15.5]} 6... Nb4 {[%clk 0:02:58]}
7. Be2 {[%clk 0:02:11.8]} 7... c5 {[%clk 0:02:56.7]} 8. c3 {[%clk 0:02:11.9]}
8... Nc6 {[%clk 0:02:56.9]} 9. Bd3 {[%clk 0:02:12.1]} 9... Qb6 {[%clk
0:02:55.3]} 10. O-O {[%clk 0:02:11.1]} 10... cxd4 {[%clk 0:02:55.1]} 11. cxd4
{[%clk 0:02:12]} 11... Nxd4 {[%clk 0:02:55.6]} 12. Nxd4 {[%clk 0:02:11.2]} 12...
Qxd4 {[%clk 0:02:56.5]} 13. Nf3 {[%clk 0:02:11.4]} 13... Qb6 {[%clk 0:02:55.5]}
14. Qa4 {[%clk 0:02:08.6]} 14... Be7 {[%clk 0:02:51.9]} 15. Qg4 {[%clk
0:02:05.3]} 15... g6 {[%clk 0:02:51.2]} 16. Bh6 {[%clk 0:02:03.7]} 16... Qb4
{[%clk 0:02:40.6]} 17. Qxb4 {[%clk 0:01:55.5]} 17... Bxb4 {[%clk 0:02:41.5]} 18.
Rac1 {[%clk 0:01:55.7]} 18... a6 {[%clk 0:02:31.1]} 19. Rc2 {[%clk 0:01:52]}
19... Nb6 {[%clk 0:02:21.1]} 20. Be3 {[%clk 0:01:46.1]} 20... Nc4 {[%clk
0:02:13.7]} 21. Bxc4 {[%clk 0:01:36.7]} 21... dxc4 {[%clk 0:02:14.6]} 22. Rxc4
{[%clk 0:01:37.2]} 22... Ba5 {[%clk 0:02:15.2]} 23. Bh6 {[%clk 0:01:27.5]} 23...
Bd7 {[%clk 0:02:11.1]} 24. Bg7 {[%clk 0:01:17.1]} 24... Rg8 {[%clk 0:02:08.4]}
25. Bf6 {[%clk 0:01:14.9]} 25... Bb5 {[%clk 0:02:07.1]} 26. Rd4 {[%clk
0:00:54.2]} 26... Bxf1 {[%clk 0:02:06.8]} 27. Kxf1 {[%clk 0:00:55.1]} 27... Bd8
{[%clk 0:02:05.9]} 28. Ng5 {[%clk 0:00:52.9]} 28... Bxf6 {[%clk 0:02:03.3]} 29.
exf6 {[%clk 0:00:53.8]} 29... Rd8 {[%clk 0:01:38.8]} 30. Rc4 {[%clk 0:00:43.8]}
30... h6 {[%clk 0:01:36.3]} 31. Ne4 {[%clk 0:00:38.1]} 31... Kd7 {[%clk
0:01:32.2]} 32. Nc5+ {[%clk 0:00:32.5]} 32... Kd6 {[%clk 0:01:24.6]} 33. Nxb7+
{[%clk 0:00:30.9]} 33... Kd5 {[%clk 0:01:25.1]} 34. Rc5+ {[%clk 0:00:19]} 34...
Kd4 {[%clk 0:01:23.2]} 35. Rc7 {[%clk 0:00:19.3]} 35... Rc8 {[%clk 0:01:20.1]}
36. Rxf7 {[%clk 0:00:18.5]} 36... Rc1+ {[%clk 0:01:18.9]} 37. Ke2 {[%clk
0:00:18.8]} 37... Rc2+ {[%clk 0:01:19.6]} 38. Kf3 {[%clk 0:00:19]} 38... Rxb2
{[%clk 0:01:20.2]} 39. Rd7+ {[%clk 0:00:17.4]} 39... Ke5 {[%clk 0:01:19.5]} 40.
f7 {[%clk 0:00:17.2]} 40... Rf8 {[%clk 0:01:19.4]} 41. Kg4 {[%clk 0:00:14.2]}
41... Rb4+ {[%clk 0:01:19.1]} 42. Kg3 {[%clk 0:00:13.4]} 42... Rf4 {[%clk
0:01:19.2]} 43. Nd6 {[%clk 0:00:12.2]} 43... h5 {[%clk 0:01:15.3]} 44. h4 {[%clk
0:00:11.3]} 44... Rf6 {[%clk 0:01:11.3]} 45. f3 {[%clk 0:00:09.1]} 45... a5
{[%clk 0:01:11.5]} 46. Nc4+ {[%clk 0:00:08.3]} 46... Kf5 {[%clk 0:01:08.9]} 47.
Nd6+ {[%clk 0:00:08.5]} 47... Ke5 {[%clk 0:01:09.1]} 48. Nc4+ {[%clk 0:00:08.3]}
48... Kf5 {[%clk 0:01:09.2]} 49. Nd6+ {[%clk 0:00:08.3]} 49... Ke5 {[%clk
0:01:09.7]} 1/2-1/2

[Event "*** SCC Grand Prix: Titled Tuesday Blitz"]
[Site "Chess.com"]
[Date "2020.08.25"]
[Round "3"]
[White "SaqoChess_Twitch"]
[Black "Jumbo"]
[Result "0-1"]
[WhiteElo "2430"]
[BlackElo "2792"]
[TimeControl "180+1"]
[EndTime "10:29:58 PDT"]
[Termination "Jumbo won by resignation"]

1. d4 {[%clk 0:02:59.9]} 1... Nf6 {[%clk 0:02:58.8]} 2. c4 {[%clk 0:02:59.8]}
2... e6 {[%clk 0:02:59.3]} 3. Nc3 {[%clk 0:03:00.2]} 3... Bb4 {[%clk 0:02:59.8]}
4. a3 {[%clk 0:03:00.8]} 4... Bxc3+ {[%clk 0:02:59.1]} 5. bxc3 {[%clk
0:03:01.7]} 5... O-O {[%clk 0:02:59]} 6. e3 {[%clk 0:03:01.6]} 6... c5 {[%clk
0:02:57.8]} 7. Bd3 {[%clk 0:03:01.9]} 7... Nc6 {[%clk 0:02:56.4]} 8. Ne2 {[%clk
0:03:01.7]} 8... b6 {[%clk 0:02:53.8]} 9. O-O {[%clk 0:02:57.1]} 9... Ba6 {[%clk
0:02:52.7]} 10. e4 {[%clk 0:02:57.3]} 10... Ne8 {[%clk 0:02:52.9]} 11. f4 {[%clk
0:02:56.9]} 11... Na5 {[%clk 0:02:52]} 12. f5 {[%clk 0:02:56.4]} 12... f6 {[%clk
0:02:51.4]} 13. Rf3 {[%clk 0:02:44.6]} 13... exf5 {[%clk 0:01:54.3]} 14. exf5
{[%clk 0:02:41.5]} 14... Nd6 {[%clk 0:01:54.7]} 15. Rh3 {[%clk 0:01:54.8]} 15...
Bxc4 {[%clk 0:01:47.1]} 16. Bxc4+ {[%clk 0:01:34]} 16... Naxc4 {[%clk
0:01:45.4]} 17. Nf4 {[%clk 0:01:23.7]} 17... Qe8 {[%clk 0:01:39.9]} 18. dxc5
{[%clk 0:01:20.3]} 18... bxc5 {[%clk 0:01:28.3]} 19. Rd3 {[%clk 0:01:02.4]}
19... Nxf5 {[%clk 0:01:17.8]} 20. Rxd7 {[%clk 0:01:01.5]} 20... Qe4 {[%clk
0:01:18]} 21. Ra2 {[%clk 0:00:37.8]} 21... Nfe3 {[%clk 0:01:05.1]} 22. Bxe3
{[%clk 0:00:20.6]} 22... Nxe3 {[%clk 0:01:04.8]} 23. Qb3+ {[%clk 0:00:21.5]}
23... Kh8 {[%clk 0:00:51.7]} 24. Ne6 {[%clk 0:00:21.4]} 24... Rfb8 {[%clk
0:00:46.8]} 25. Nxc5 {[%clk 0:00:14.3]} 25... Qf5 {[%clk 0:00:40]} 26. Rf2
{[%clk 0:00:06.5]} 26... Qxc5 {[%clk 0:00:26.7]} 27. Rb7 {[%clk 0:00:06.9]}
27... Rxb7 {[%clk 0:00:24.1]} 28. Qxb7 {[%clk 0:00:07.8]} 28... Rd8 {[%clk
0:00:24.6]} 29. h4 {[%clk 0:00:06.9]} 29... Ng4 {[%clk 0:00:23.1]} 0-1

[Event "*** SCC Grand Prix: Titled Tuesday Blitz"]
[Site "Chess.com"]
[Date "2020.08.25"]
[Round "3"]
[White "bratkoo"]
[Black "varacalli"]
[Result "0-1"]
[WhiteElo "2542"]
[BlackElo "2381"]
[TimeControl "180+1"]
[EndTime "10:29:58 PDT"]
[Termination "varacalli won by resignation"]

1. e4 {[%clk 0:03:00.9]} 1... e5 {[%clk 0:02:58.6]} 2. Nf3 {[%clk 0:03:00]} 2...
Nc6 {[%clk 0:02:56.2]} 3. Bc4 {[%clk 0:02:58.4]} 3... Bc5 {[%clk 0:02:56]} 4.
O-O {[%clk 0:02:57.3]} 4... Nf6 {[%clk 0:02:55.9]} 5. d3 {[%clk 0:02:56.8]} 5...
d6 {[%clk 0:02:54.8]} 6. Re1 {[%clk 0:02:56.8]} 6... Bb6 {[%clk 0:02:53.6]} 7.
a4 {[%clk 0:02:56.6]} 7... a5 {[%clk 0:02:51.6]} 8. Nbd2 {[%clk 0:02:51.4]} 8...
Ne7 {[%clk 0:02:51.3]} 9. Nf1 {[%clk 0:02:48.8]} 9... Ng6 {[%clk 0:02:51.5]} 10.
c3 {[%clk 0:02:42.3]} 10... O-O {[%clk 0:02:51]} 11. Be3 {[%clk 0:02:36.8]}
11... c6 {[%clk 0:02:48.9]} 12. Qd2 {[%clk 0:02:29.4]} 12... Bc7 {[%clk
0:02:46.7]} 13. Ng3 {[%clk 0:02:27.4]} 13... d5 {[%clk 0:02:45.9]} 14. exd5
{[%clk 0:02:27]} 14... cxd5 {[%clk 0:02:46.8]} 15. Ba2 {[%clk 0:02:26.5]} 15...
h6 {[%clk 0:02:41.6]} 16. h3 {[%clk 0:02:20.6]} 16... Be6 {[%clk 0:02:32.4]} 17.
d4 {[%clk 0:02:05.5]} 17... e4 {[%clk 0:02:31.2]} 18. Nh2 {[%clk 0:02:06]} 18...
Qd7 {[%clk 0:02:26.5]} 19. Qe2 {[%clk 0:01:47.8]} 19... Rfe8 {[%clk 0:02:24.5]}
20. Nh5 {[%clk 0:01:42.9]} 20... Nxh5 {[%clk 0:02:18.4]} 21. Qxh5 {[%clk
0:01:43]} 21... Nf4 {[%clk 0:02:13.5]} 22. Bxf4 {[%clk 0:01:34.7]} 22... Bxf4
{[%clk 0:02:14.4]} 23. Nf1 {[%clk 0:01:32.5]} 23... Bc7 {[%clk 0:02:09.1]} 24.
Ne3 {[%clk 0:01:30.8]} 24... Qd6 {[%clk 0:02:07.4]} 25. Bxd5 {[%clk 0:01:25.8]}
25... Bxd5 {[%clk 0:02:00.4]} 26. Qxd5 {[%clk 0:01:25.1]} 26... Qh2+ {[%clk
0:02:00.3]} 27. Kf1 {[%clk 0:01:25.4]} 27... Bf4 {[%clk 0:01:54.8]} 28. Qh5
{[%clk 0:00:45.4]} 28... Re6 {[%clk 0:01:46.4]} 29. Ke2 {[%clk 0:00:29.6]} 29...
Bxe3 {[%clk 0:01:45]} 30. Kxe3 {[%clk 0:00:30.1]} 30... Qxg2 {[%clk 0:01:40.5]}
31. Rg1 {[%clk 0:00:28.2]} 31... Qh2 {[%clk 0:01:38.6]} 32. Qg4 {[%clk 0:00:19]}
32... Rg6 {[%clk 0:01:34]} 33. Rh1 {[%clk 0:00:18.1]} 33... Qd6 {[%clk
0:01:26.8]} 34. Qf4 {[%clk 0:00:18.1]} 34... Qc6 {[%clk 0:01:22.4]} 35. Rag1
{[%clk 0:00:18.1]} 35... Rf6 {[%clk 0:01:21.6]} 36. Qg4 {[%clk 0:00:17.4]} 36...
Rf3+ {[%clk 0:01:18.8]} 37. Ke2 {[%clk 0:00:16.7]} 37... g6 {[%clk 0:01:14.9]}
38. Qh4 {[%clk 0:00:09.9]} 38... Re8 {[%clk 0:01:10.8]} 39. Kd2 {[%clk
0:00:09.9]} 39... e3+ {[%clk 0:01:10.5]} 40. fxe3 {[%clk 0:00:10.2]} 40... Rfxe3
{[%clk 0:01:10]} 41. Rh2 {[%clk 0:00:10.8]} 41... Qf3 {[%clk 0:01:06.6]} 42.
Qxh6 {[%clk 0:00:09.2]} 42... Re2+ {[%clk 0:01:03.6]} 43. Rxe2 {[%clk
0:00:09.3]} 43... Rxe2+ {[%clk 0:01:04.1]} 44. Kc1 {[%clk 0:00:09.6]} 44... Qf5
{[%clk 0:00:59]} 45. Qd2 {[%clk 0:00:02.3]} 45... Rxd2 {[%clk 0:00:58.5]} 46.
Kxd2 {[%clk 0:00:03.2]} 46... Qf2+ {[%clk 0:00:58.3]} 0-1

[Event "*** SCC Grand Prix: Titled Tuesday Blitz"]
[Site "Chess.com"]
[Date "2020.08.25"]
[Round "3"]
[White "Nf3c5"]
[Black "markberk"]
[Result "1-0"]
[WhiteElo "2554"]
[BlackElo "2357"]
[TimeControl "180+1"]
[EndTime "10:30:02 PDT"]
[Termination "Nf3c5 won on time"]

1. d4 {[%clk 0:03:00]} 1... Nf6 {[%clk 0:02:59]} 2. c4 {[%clk 0:02:58.8]} 2...
e6 {[%clk 0:02:58.9]} 3. Nf3 {[%clk 0:02:57.9]} 3... d5 {[%clk 0:02:58]} 4. g3
{[%clk 0:02:57]} 4... Be7 {[%clk 0:02:54.7]} 5. Bg2 {[%clk 0:02:56.6]} 5... O-O
{[%clk 0:02:54.4]} 6. O-O {[%clk 0:02:57.2]} 6... dxc4 {[%clk 0:02:54.3]} 7. Qc2
{[%clk 0:02:57.4]} 7... a6 {[%clk 0:02:53.3]} 8. a4 {[%clk 0:02:56.2]} 8... Bd7
{[%clk 0:02:45.5]} 9. Rd1 {[%clk 0:02:56.3]} 9... c5 {[%clk 0:02:26.7]} 10. dxc5
{[%clk 0:02:46.3]} 10... Bxc5 {[%clk 0:02:25.2]} 11. Ne5 {[%clk 0:01:38.6]}
11... Qb6 {[%clk 0:02:22.9]} 12. e3 {[%clk 0:01:32.6]} 12... Bc6 {[%clk
0:02:16.6]} 13. Nxc4 {[%clk 0:01:12.5]} 13... Qc7 {[%clk 0:02:15.2]} 14. e4
{[%clk 0:01:11.3]} 14... Nbd7 {[%clk 0:02:04.8]} 15. Bf4 {[%clk 0:01:11.2]}
15... e5 {[%clk 0:02:02.6]} 16. Be3 {[%clk 0:01:09.7]} 16... Rad8 {[%clk
0:01:43.3]} 17. Nc3 {[%clk 0:01:06]} 17... Qb8 {[%clk 0:01:06.5]} 18. a5 {[%clk
0:01:01]} 18... Qa7 {[%clk 0:01:03.2]} 19. h3 {[%clk 0:00:59.6]} 19... Bd4
{[%clk 0:00:58.5]} 20. b4 {[%clk 0:00:55.3]} 20... Rc8 {[%clk 0:00:55.3]} 21.
Qb3 {[%clk 0:00:50.6]} 21... Bb5 {[%clk 0:00:34.1]} 22. Bxd4 {[%clk 0:00:41.9]}
22... exd4 {[%clk 0:00:30.2]} 23. Nxb5 {[%clk 0:00:41.9]} 23... axb5 {[%clk
0:00:27.8]} 24. Nd6 {[%clk 0:00:42.8]} 24... Rc3 {[%clk 0:00:24.9]} 25. Qb2
{[%clk 0:00:39.6]} 25... Qa6 {[%clk 0:00:16.9]} 26. Nf5 {[%clk 0:00:38.8]} 26...
Ne5 {[%clk 0:00:14.4]} 27. Rxd4 {[%clk 0:00:36.9]} 27... Rc4 {[%clk 0:00:13]}
28. Rad1 {[%clk 0:00:35.3]} 28... Qe6 {[%clk 0:00:10]} 29. Rd6 {[%clk
0:00:32.3]} 29... Qe8 {[%clk 0:00:06.7]} 30. Rd8 {[%clk 0:00:26.9]} 30... Qxd8
{[%clk 0:00:05.9]} 31. Rxd8 {[%clk 0:00:27.8]} 31... Rxd8 {[%clk 0:00:04.1]} 32.
Qxe5 {[%clk 0:00:28.1]} 1-0

[Event "*** SCC Grand Prix: Titled Tuesday Blitz"]
[Site "Chess.com"]
[Date "2020.08.25"]
[Round "3"]
[White "bocah_sakit"]
[Black "exoticprincess"]
[Result "1-0"]
[WhiteElo "2621"]
[BlackElo "2872"]
[TimeControl "180+1"]
[EndTime "10:30:04 PDT"]
[Termination "bocah_sakit won by resignation"]

1. e4 {[%clk 0:03:00.9]} 1... c6 {[%clk 0:03:00.9]} 2. d4 {[%clk 0:03:00.2]}
2... d5 {[%clk 0:03:01.8]} 3. Nd2 {[%clk 0:03:00.5]} 3... dxe4 {[%clk
0:03:01.6]} 4. Nxe4 {[%clk 0:03:01.4]} 4... Nf6 {[%clk 0:03:02.3]} 5. Nxf6+
{[%clk 0:03:00.8]} 5... exf6 {[%clk 0:03:03.2]} 6. c3 {[%clk 0:03:01.1]} 6...
Bd6 {[%clk 0:03:03.7]} 7. Bd3 {[%clk 0:03:01.5]} 7... O-O {[%clk 0:03:04.2]} 8.
Qc2 {[%clk 0:03:02]} 8... Re8+ {[%clk 0:03:05.1]} 9. Ne2 {[%clk 0:03:02.1]} 9...
h6 {[%clk 0:03:04.7]} 10. O-O {[%clk 0:03:00.5]} 10... Nd7 {[%clk 0:03:04.9]}
11. Bf4 {[%clk 0:02:55.6]} 11... Rxe2 {[%clk 0:03:02.8]} 12. Qxe2 {[%clk
0:02:55.3]} 12... Bxf4 {[%clk 0:03:02.9]} 13. Qe4 {[%clk 0:02:55.5]} 13... Bxh2+
{[%clk 0:02:51]} 14. Kxh2 {[%clk 0:02:55.3]} 14... Nf8 {[%clk 0:02:51.9]} 15.
Rfe1 {[%clk 0:02:52.4]} 15... Be6 {[%clk 0:02:52.1]} 16. c4 {[%clk 0:02:44.7]}
16... Qb6 {[%clk 0:02:50.6]} 17. b3 {[%clk 0:02:40.6]} 17... Rd8 {[%clk
0:02:50.6]} 18. Rad1 {[%clk 0:02:40.9]} 18... f5 {[%clk 0:02:45.2]} 19. Qe5
{[%clk 0:02:31.5]} 19... Rxd4 {[%clk 0:02:35.7]} 20. c5 {[%clk 0:02:06.1]} 20...
Qd8 {[%clk 0:02:30.4]} 21. Bc2 {[%clk 0:02:00.6]} 21... Rh4+ {[%clk 0:02:30.2]}
22. Kg1 {[%clk 0:02:00.3]} 22... Qg5 {[%clk 0:02:31.1]} 23. Re3 {[%clk
0:00:57.6]} 23... Ng6 {[%clk 0:02:05.6]} 24. Qb8+ {[%clk 0:00:53]} 24... Kh7
{[%clk 0:02:05.7]} 25. Rd8 {[%clk 0:00:39.3]} 25... Qh5 {[%clk 0:01:57.5]} 26.
Rh3 {[%clk 0:00:37.3]} 26... Rxh3 {[%clk 0:01:57.7]} 27. gxh3 {[%clk 0:00:38.2]}
27... Qxh3 {[%clk 0:01:56.3]} 28. Qg3 {[%clk 0:00:36.2]} 28... Qh5 {[%clk
0:01:54.3]} 29. Bd1 {[%clk 0:00:33.8]} 29... Qg5 {[%clk 0:01:44.7]} 30. Qxg5
{[%clk 0:00:33.3]} 30... hxg5 {[%clk 0:01:45.6]} 31. Rb8 {[%clk 0:00:33.7]}
31... Ne5 {[%clk 0:01:26.3]} 32. Rxb7 {[%clk 0:00:31.3]} 32... Nd3 {[%clk
0:01:26.9]} 33. Rxa7 {[%clk 0:00:22.5]} 33... Nxc5 {[%clk 0:01:27.2]} 34. Bc2
{[%clk 0:00:21.5]} 34... Kg6 {[%clk 0:01:26.8]} 35. b4 {[%clk 0:00:15.5]} 35...
Ne4 {[%clk 0:01:24.2]} 36. a4 {[%clk 0:00:14]} 36... Nc3 {[%clk 0:01:23.7]} 37.
a5 {[%clk 0:00:13.8]} 37... Kf6 {[%clk 0:01:23.4]} 38. a6 {[%clk 0:00:13]} 38...
Ke5 {[%clk 0:01:15.9]} 39. Rb7 {[%clk 0:00:09.7]} 39... Bc8 {[%clk 0:01:15.6]}
40. Bd3 {[%clk 0:00:06.2]} 40... Nd5 {[%clk 0:01:14.6]} 41. Rb8 {[%clk
0:00:05.2]} 41... Bxa6 {[%clk 0:01:14.1]} 42. Bxa6 {[%clk 0:00:05.9]} 42... g6
{[%clk 0:01:13.7]} 43. Bc4 {[%clk 0:00:05.8]} 43... Nc3 {[%clk 0:01:03.4]} 44.
Bxf7 {[%clk 0:00:06.7]} 44... Kf6 {[%clk 0:01:03.7]} 45. Bc4 {[%clk 0:00:06.1]}
45... Ke5 {[%clk 0:01:03.6]} 46. Rg8 {[%clk 0:00:04.1]} 46... Kd4 {[%clk
0:01:03.5]} 47. Bf7 {[%clk 0:00:03.9]} 47... g4 {[%clk 0:01:03.8]} 48. Rxg6
{[%clk 0:00:04.1]} 48... Ne2+ {[%clk 0:01:03.5]} 49. Kf1 {[%clk 0:00:04]} 1-0